{"text_format":"1","workbook":"xlsx","n_sheets":3,"sheets":["Sheet1","Sheet2","Sheet3"],"not_rendered":{"charts":0,"images":0,"macros":1,"external_links":0,"defined_names":6,"comments":0,"pivot_tables":0},"unopened":[],"bounds":{"document_bytes":16777216,"sheet_cells":100000,"rows_first":2000,"rows_last":500,"rows_between":2000,"halvings":0,"cell_chars":16384,"cell_head_chars":4096},"cells_cut":0,"cells_raw":0,"read":"whole","date_system":"1900"}

{"sheet":"Sheet1","index":0,"n_rows":33,"n_cols":29,"rows_kept":33,"cut":false,"hidden":false,"merged":[[1,1,1,25],[3,2,3,24],[2,1,2,25],[4,1,29,1],[30,1,30,25],[4,25,29,25]]}
[]
[null,"Competitor IDs & Times                                                    By S Saunders.                                                     ©Rocketwaveuk.com"]
[null,"To Use:        type a ref number in the cell  press enter or  ↓"]
[]
[null,null,"Competitor","Time",null,"Competitor","Time",null,"Competitor","Time",null,"Competitor","Time",null,"Competitor","Time",null,"Competitor","Time",null,"Competitor","Time",null,"Competitor","Time"]
[null,null,11,"19:09:37",null,null,null,null,null,null,null,null,null,null,null,null,null,null,null,null,null,null,null,null,null,null,null,"Sheet",2]
[]
[null,null,null,null,null,null,null,null,null,null,null,null,null,null,null,null,null,null,null,null,null,null,null,null,null,null,null,"Totals",2]
[]
[]
[]
[]
[]
[]
[]
[]
[]
[]
[]
[]
[]
[]
[]
[]
[]
[]
[]
[]
[]
[null,null,null,null,null,null,null,null,null,null,null,null,null,null,null,null,null,null,null,null,null,null,null,23,"19:09:45"]
[]
[]
[null,null,{"$f":"SUM(C6:C30)","v":11},null,null,{"$f":"SUM(F6:F30)","v":0},null,null,{"$f":"SUM(I6:I30)","v":0},null,null,{"$f":"SUM(L6:L30)","v":0},null,null,0,null,null,0,null,null,0,null,null,23]

{"sheet":"Sheet2","index":1,"n_rows":33,"n_cols":29,"rows_kept":33,"cut":false,"hidden":false,"merged":[[30,1,30,25],[1,1,1,25],[2,1,2,25],[3,2,3,24],[4,1,29,1],[4,25,29,25]]}
[]
[null,"Competitor IDs & Times                                                    By S Saunders.                                                     ©Rocketwaveuk.com"]
[null,"To Use:        type a ref number in the cell  press enter or  ↓"]
[]
[null,null,"Competitor","Time",null,"Competitor","Time",null,"Competitor","Time",null,"Competitor","Time",null,"Competitor","Time",null,"Competitor","Time",null,"Competitor","Time",null,"Competitor","Time"]
[null,null,null,null,null,null,null,null,null,null,null,null,null,null,null,null,null,null,null,null,null,null,null,null,null,null,null,"Sheet",2]
[null,null,34,"19:09:54"]
[null,null,null,null,null,null,null,null,null,null,null,null,null,null,null,null,null,null,null,null,null,null,null,null,null,null,null,"Totals",4]
[]
[]
[]
[]
[]
[]
[]
[]
[]
[]
[]
[]
[]
[]
[]
[]
[]
[]
[]
[]
[null,null,null,null,null,null,null,null,null,null,null,null,null,null,null,null,null,null,null,null,null,null,null,54,"19:09:59"]
[]
[]
[]
[null,null,{"$f":"SUM(C6:C30)","v":34},null,null,{"$f":"SUM(F6:F30)","v":0},null,null,{"$f":"SUM(I6:I30)","v":0},null,null,{"$f":"SUM(L6:L30)","v":0},null,null,0,null,null,0,null,null,0,null,null,54]

{"sheet":"Sheet3","index":2,"n_rows":33,"n_cols":29,"rows_kept":33,"cut":false,"hidden":false,"merged":[[30,1,30,25],[1,1,1,25],[2,1,2,25],[3,2,3,24],[4,1,29,1],[4,25,29,25]]}
[]
[null,"Competitor IDs & Times                                                    By S Saunders.                                                     ©Rocketwaveuk.com"]
[null,"To Use:        type a ref number in the cell  press enter or  ↓"]
[]
[null,null,"Competitor","Time",null,"Competitor","Time",null,"Competitor","Time",null,"Competitor","Time",null,"Competitor","Time",null,"Competitor","Time",null,"Competitor","Time",null,"Competitor","Time"]
[null,null,null,null,null,91,"19:10:11",null,null,null,null,null,null,null,null,null,null,null,null,null,null,null,null,null,null,null,null,"Sheet",2]
[]
[null,null,null,null,null,null,null,null,null,null,null,null,null,null,null,null,null,null,null,null,null,null,null,null,null,null,null,"Totals",6]
[]
[]
[]
[]
[]
[]
[]
[]
[]
[]
[]
[]
[]
[]
[]
[]
[]
[]
[]
[]
[]
[null,null,null,null,null,null,null,null,null,null,null,null,null,null,null,null,null,97,"19:10:17"]
[]
[]
[null,null,{"$f":"SUM(C6:C30)","v":0},null,null,{"$f":"SUM(F6:F30)","v":91},null,null,{"$f":"SUM(I6:I30)","v":0},null,null,{"$f":"SUM(L6:L30)","v":0},null,null,0,null,null,97,null,null,0,null,null,0]